fUSD/lending_fUSD_20240730
["ID","MTS","AMOUNT","RATE_DAILY","PERIOD"]
[333687433,1722353446502,-370.76509368,0.00011,2]
[333687439,1722353446555,-6019.2388602,0.00011,2]
[333687440,1722353446710,-3302.75,0.00011,2]
[333687705,1722353598008,500.0,0.00027,120]
[333687706,1722353801085,10000.0,6.3e-05,2]
[333687707,1722353812061,10000.0,6.3e-05,2]
[333687708,1722353819182,10000.0,6.3e-05,2]
[333687709,1722353826764,10000.0,6.3e-05,2]
[333687710,1722353834084,10000.0,6.3e-05,2]
[333687711,1722353837482,291.29119994,6.3e-05,2]
[333687712,1722353839681,1350.0,6.3e-05,2]
[333687713,1722353840033,10000.0,6.3e-05,2]
[333687714,1722353842021,155.0,6.3e-05,2]
[333687715,1722353844563,797.68561471,6.3e-05,2]
[333687716,1722353845808,871.44654427,6.3e-05,2]
[333687717,1722353846023,363.62565954,6.3e-05,2]
[333687718,1722353846734,10000.0,6.3e-05,2]
[333687719,1722353849776,1369.92317728,6.3e-05,2]
[333687720,1722353852610,180.04283334,6.3e-05,2]
[333687721,1722353853337,250.0,6.3e-05,2]
[333687722,1722353853708,158.89214618,6.3e-05,2]
[333687723,1722353853971,10000.0,6.3e-05,2]
[333687724,1722353854976,20372.81693446,6.3e-05,2]
[333687725,1722353855296,786.85877071,6.3e-05,2]
[333687726,1722353857791,7571.83124214,6.3e-05,2]
[333687727,1722353859064,411.49590119,6.3e-05,2]
[333687728,1722353859301,155.0,6.3e-05,2]
[333687729,1722353860280,7571.83124214,6.3e-05,2]
[333687730,1722353860401,10000.0,6.3e-05,2]
[333687731,1722353860650,485.18575139,6.3e-05,2]
[333687732,1722353861860,155.0,6.3e-05,2]
[333687733,1722353863821,2920.03927439,6.3e-05,2]
[333687734,1722353869794,20372.81693446,6.3e-05,2]
[333687735,1722353875653,485.18575139,6.3e-05,2]
[333687736,1722353891107,2031.68,6.3e-05,2]
[333687738,1722353937495,797.68561471,6.3e-05,2]
[333687739,1722353937806,871.44654427,6.3e-05,2]
[333687740,1722353946824,155.0,6.3e-05,2]
[333687741,1722353958829,2433.36606199,6.3e-05,2]
[333687742,1722353976796,7571.83124214,6.3e-05,2]
[333687743,1722353979171,470.5354056,6.3e-05,2]
[333687744,1722354003498,150.0,6.3e-05,2]
[333687745,1722354003644,150.0,6.3e-05,2]
[333687746,1722354003857,150.0,6.3e-05,2]
[333687747,1722354004320,157.44464922,6.3e-05,2]
[333687748,1722354004931,11774.53977789,6.3e-05,2]
[333687749,1722354033816,871.44654427,6.3e-05,2]
[333687750,1722354035483,809.46372714,6.3e-05,2]
[333687751,1722354046524,275.59471109,0.00025,60]
[333687752,1722354048190,1267.7837183,6.3e-05,2]
[333687753,1722354055787,155.0,6.3e-05,2]
[333687754,1722354066298,7571.83124214,6.3e-05,2]
[333687755,1722354085787,155.0,6.3e-05,2]
[333687756,1722354119886,560.53474178,6.3e-05,2]
[333687757,1722354158797,7571.83124214,6.3e-05,2]
[333687758,1722354163875,1267.7837183,6.3e-05,2]
[333687759,1722354178828,1267.7837183,6.3e-05,2]
[333687760,1722354219800,155.0,6.3e-05,2]
[333687761,1722354281810,3748.65602613,6.3e-05,2]
[333687762,1722354288840,1267.7837183,6.3e-05,2]
[333687763,1722354329803,155.0,6.3e-05,2]
[333687764,1722354367838,1267.7837183,6.3e-05,2]
[333687765,1722354408224,155.0,6.3e-05,2]
[333687767,1722354429203,-309.37227377,7.636e-05,2]
[333687768,1722354429225,-892.89339627,7.636e-05,2]
[333687769,1722354429246,-1267.7837183,7.636e-05,2]
[333687770,1722354429268,-530.44566551,7.636e-05,2]
[333687771,1722354429291,-451.18,8.219e-05,2]
[333687772,1722354429314,-480.0,9.624e-05,2]
[333687773,1722354429336,-300.0,9.654e-05,2]
[333687774,1722354429361,-8761.46,9.655e-05,2]
[333687775,1722354429384,-6707.29,9.668e-05,2]
[333687776,1722354429406,-520.0,9.818e-05,2]
[333687777,1722354429428,-480.856,9.855e-05,2]
[333687778,1722354429451,-800.0,9.9e-05,3]
[333687779,1722354429474,-1600.0,0.0001,3]
[333687780,1722354429500,-1250.0,0.0001,2]
[333687781,1722354430647,349.69816126,7.636e-05,2]
[333687782,1722354438133,303.00650725,7.636e-05,2]
[333687783,1722354445311,155.0,7.636e-05,2]
[333687784,1722354463481,237.84114552,7.636e-05,2]
[333687785,1722354471335,1267.7837183,7.636e-05,2]
[333687786,1722354477324,677.40776229,7.636e-05,2]
[333687787,1722354479314,166.07354846,7.636e-05,2]
[333687788,1722354499124,19680.32961465,9.256e-05,2]
[333687789,1722354521346,1267.7837183,9.256e-05,2]
[333687790,1722354526420,1543.79477012,0.0001,2]
[333687816,1722354632264,-300.0,9.255e-05,2]
[333687818,1722354632277,-1049.62171461,0.0001,2]
[333687821,1722354632291,-412.72446229,0.0001,2]
[333687823,1722354632304,-456.20522988,0.0001,2]
[333687826,1722354632318,-759.80330319,0.0001,2]
[333687828,1722354632331,-181.64348729,0.0001,2]
[333687830,1722354632345,-299.68419196,0.0001,2]
[333687833,1722354632360,-326.93833553,0.0001,2]
[333687835,1722354632373,-449.09693137,0.0001,2]
[333687836,1722354632387,-2400.0,0.000101,3]
[333687837,1722354632402,-420.0,0.0001018,2]
[333687838,1722354632415,-3200.0,0.000102,3]
[333687839,1722354632428,-4000.0,0.000103,3]
[333687840,1722354632441,-499.99,0.000103,2]
[333687841,1722354632455,-800.0,0.000104,3]
[333687842,1722354632468,-800.0,0.000105,3]
[333687843,1722354632481,-805.44,0.00010541,2]
[333687844,1722354632495,-800.0,0.000106,3]
[333687845,1722354632509,-9236.68269313,0.00010665,2]
[333687846,1722354632522,-150.0,0.00010665,2]
[333687847,1722354632534,-1505.90166818,0.00010666,2]
[333687848,1722354632551,-1042.5,0.00010666,2]
[333687849,1722354632566,-4983.75,0.00010666,2]
[333687851,1722354632611,-710.59577829,0.00010666,2]
[333687854,1722354632627,-482.99531256,0.00010666,2]
[333687857,1722354632649,-17286.71559538,0.00010666,2]
[333687859,1722354632664,-1089.17258643,0.00010666,2]
[333687862,1722354632685,-6935.22246368,0.00010666,2]
[333687866,1722354632713,-2357.56667441,0.00010666,2]
[333687868,1722354632729,-1445.77865243,0.00010666,2]
[333687869,1722354632955,-553.85044682,0.00010666,2]
[333687870,1722354632970,-685.87739181,0.00010666,2]
[333687871,1722354632982,-2807.53512977,0.00010666,2]
[333687883,1722354638276,-1267.7837183,0.0001,2]
[333687884,1722354638285,-577.9374477,0.00010666,2]
[333687885,1722354638297,-323.27631566,0.00010666,2]
[333687886,1722354638487,-4633.35763688,0.00010666,2]
[333687887,1722354638496,-3171.115,0.00010666,2]
[333687888,1722354638506,-425.54,0.00010678,2]
[333687889,1722354638516,-325.58,0.00010678,2]
[333687890,1722354638525,-150.0,0.00010678,2]
[333687891,1722354638534,-150.0,0.00010678,2]
[333687892,1722354638543,-150.0,0.00010678,2]
[333687893,1722354638552,-449.19047682,0.000107,3]
[333688089,1722354640452,-350.80952318,0.000107,3]
[333688091,1722354640462,-2439.14814662,0.000108,2]
[333688093,1722354640474,-552.33090042,0.000108,2]
[333688095,1722354640487,-891.18572847,0.000108,2]
[333688098,1722354640506,-2168.59643,0.000108,2]
[333688100,1722354640518,-1479.82326203,0.000108,2]
[333688103,1722354640529,-2256.33146258,0.000108,2]
[333688112,1722354640613,-348.33,0.000108,2]
[333688119,1722354640667,-3059.17987268,0.000108,2]
[333688121,1722354640678,-9514.96547887,0.000108,2]
[333688143,1722354640879,-300.0,0.000108,2]
[333688150,1722354640934,-356.19588052,8.219e-05,2]
[333688395,1722354643311,-72.42411948,8.219e-05,2]
[333688397,1722354643321,-428.62,0.00010478,2]
[333688399,1722354643331,-1412.55654831,0.000108,2]
[333688403,1722354643367,-1012.41,0.000108,2]
[333688406,1722354643379,-298.975,0.000108,2]
[333688408,1722354643390,-7579.64117648,0.000108,2]
[333688417,1722354643473,-2350.94163565,0.000108,2]
[333688419,1722354643483,-1120.0,0.000108,3]
[333688421,1722354643492,-480.0,0.00010826,2]
[333688423,1722354643503,-165.04170793,0.0001087,2]
[333688425,1722354643512,-165.04170793,0.00010878,2]
[333688427,1722354643522,-165.04170793,0.00010889,2]
[333688429,1722354643532,-1133.11352117,0.000109,2]
[333688432,1722354643547,-579.35,0.000109,2]
[333688441,1722354643634,-446.60937883,0.000109,2]
[333688444,1722354643646,-1000.0,0.000109,2]
[333688446,1722354643657,-3000.0,0.0001094,2]
[333688447,1722354643666,-200.0,0.00010959,2]
[333688449,1722354643676,-250.0,0.00010959,2]
[333688451,1722354643686,-173.0,0.0001099,2]
[333688453,1722354643696,-700.0,0.0001099,2]
[333688455,1722354643705,-1480.5949159,0.00010998,2]
[333688457,1722354643715,-1531.4802701,0.00010998,2]
[333688459,1722354643724,-1533.5176029,0.00010998,2]
[333688461,1722354643733,-836.3154531,0.00010998,2]
[333688463,1722354643742,-2703.88804081,0.00010998,2]
[333688465,1722354643754,-1309.03768316,0.00010998,2]
[333688468,1722354643774,-5285.74825503,0.00010998,2]
[333688470,1722354643783,-189.38497884,0.00010999,2]
[333688472,1722354643793,-1159.36161295,0.00010999,3]
[333688474,1722354643802,-160.0,0.00010999,2]
[333688476,1722354643812,-2000.0,0.00010999,2]
[333688478,1722354643821,-2000.0,0.00010999,2]
[333688480,1722354643830,-150.0,0.00010999,2]
[333688482,1722354643839,-150.0,0.00010999,7]
[333688484,1722354643849,-216.36960692,0.00010999,2]
[333688486,1722354643857,-60195.74133089,0.00011,2]
[333688488,1722354643869,-3158.60889169,0.00011,2]
[333688509,1722354644053,-1668.02297108,0.00011,2]
[333688589,1722354646334,-1325.98466,0.00011,2]
[333688592,1722354646345,-11182.99173202,0.00011,2]
[333688607,1722354646712,-12115.36860853,0.00011,2]
[333688608,1722354646723,-2310.8210172,0.00011,2]
[333688609,1722354646760,-498.35458094,0.00011,2]
[333688610,1722354646772,-263.31897528,0.00011,2]
[333688611,1722354646783,-93703.52822652,0.00011,2]
[333688612,1722354646792,-20961.60458552,0.00011,2]
[333688613,1722354646807,-508.5,0.00011,2]
[333688614,1722354646818,-12663.42828612,0.00011,2]
[333688615,1722354646829,-1348.24207892,0.00011,2]
[333688616,1722354646845,-5767.26761744,0.00011,2]
[333688617,1722354646856,-332.78,0.00011,2]
[333688618,1722354646874,-2800.21661438,0.00011,2]
[333688619,1722354646885,-1246.58900404,0.00011,2]
[333688620,1722354646896,-2609.99752265,0.00011,2]
[333688621,1722354646907,-644.05,0.00011,2]
[333688622,1722354646917,-39570.75460981,0.00011,2]
[333688623,1722354797021,500.0,0.00027,120]
[333688625,1722355219206,422.64599473,0.00027,120]
[333688626,1722355413510,1035.95750162,0.00027,120]
[333688627,1722355489347,151.0,0.00027,120]
[333688628,1722355491641,3000.0,0.00027,120]
[333688629,1722355502735,2000.0,0.00027,120]
[333688630,1722355509984,151.222955,0.00027,120]
[333688662,1722355831480,-377.86782155,8.472e-05,2]
[333688663,1722355831537,-48.12217845,8.472e-05,2]
[333688664,1722355831547,-1328.35,9.9e-05,2]
[333688665,1722355831556,-4004.58917024,9.9e-05,2]
[333688666,1722355831567,-1001.3484,9.9e-05,2]
[333688667,1722355831578,-1041.04,9.9e-05,2]
[333688668,1722355831588,-2007.456,9.9e-05,2]
[333688669,1722355831618,-1089.28032047,9.9e-05,2]
[333688670,1722355831627,-712.0,9.913e-05,2]
[333688671,1722355831636,-5998.69220096,9.999e-05,2]
[333688672,1722355831645,-150.0,9.999e-05,2]
[333688673,1722355831654,-300.0,9.999e-05,2]
[333688674,1722355831663,-326.93833553,0.0001,2]
[333688675,1722355831672,-1049.62171461,0.0001,2]
[333688676,1722355831681,-412.72446229,0.0001,2]
[333688677,1722355831690,-760.55919723,0.0001,2]
[333688678,1722355831700,-181.64348729,0.0001,2]
[333688679,1722355831710,-299.68419196,0.0001,2]
[333688680,1722355831718,-449.09693137,0.0001,2]
[333688681,1722355831728,-1250.0,0.0001,2]
[333688682,1722355831737,-195.82,0.00010136,2]
[333688683,1722355831746,-188.18,0.00010137,2]
[333688684,1722355831755,-3593.88,0.00010217,2]
[333688685,1722355831765,-9999.99,0.00010217,2]
[333688686,1722355831774,-150.99,0.00010217,2]
[333688687,1722355831783,-161.88,0.000103,2]
[333688688,1722355831792,-288.0,0.00010389,2]
[333688689,1722355831801,-833.86,0.000104,2]
[333688690,1722355831810,-420.42,0.000104,2]
[333688691,1722355831819,-420.42,0.000104,2]
[333688692,1722355831828,-420.42,0.000104,2]
[333688693,1722355831837,-420.42,0.000104,2]
[333688694,1722355831846,-178.34,0.0001049,2]
[333688695,1722355831855,-425.99,0.00010736,2]
[333688696,1722355831864,-3035.95,0.00010831,2]
[333688698,1722355831874,-2512.77542143,0.0001089,2]
[333688700,1722355831883,-787.53561164,0.00010899,2]
[333688702,1722355831892,-787.53561159,0.00010899,2]
[333688703,1722355831902,-787.53561159,0.00010899,2]
[333688705,1722355831912,-787.53561159,0.00010899,2]
[333688707,1722355831920,-787.53561159,0.00010899,2]
[333688709,1722355831930,-787.53561159,0.00010899,2]
[333688710,1722355831939,-787.53561159,0.00010899,2]
[333688712,1722355831950,-787.53561159,0.000109,2]
[333688714,1722355831959,-15133.2391,0.000109,2]
[333688716,1722355831969,-787.53561159,0.000109,2]
[333688718,1722355831978,-3724.0909,0.000109,2]
[333688720,1722355831987,-169.07856241,0.000109,2]
[333688722,1722355831996,-739.84773158,0.000109,2]
[333688724,1722355832006,-739.84773158,0.000109,2]
[333688726,1722355832015,-787.53561159,0.000109,2]
[333688727,1722355832024,-1222.0,0.000109,2]
[333688729,1722355832033,-659.04990168,0.000109,2]
[333688730,1722355832043,-200.0,0.00010959,2]
[333688731,1722355832053,-15646.7,0.00010959,2]
[333688732,1722355832062,-499.99,0.00010959,2]
[333688733,1722355832072,-173.0,0.0001099,2]
[333688734,1722355832082,-8248.84473866,0.0001099,2]
[333688735,1722355832093,-457.29170079,0.0001099,2]
[333688736,1722355832151,-498.6429475,0.0001099,2]
[333688737,1722355832162,-1026.39824093,0.0001099,2]
[333688738,1722355832173,-365.89746288,0.0001099,2]
[333688739,1722355832192,-1013.445537,0.0001099,2]
[333688779,1722355837778,-796.44791203,0.0001099,2]
[333688781,1722355837789,-15098.65763739,0.0001099,2]
[333688783,1722355837800,-15524.9999999,0.0001099,2]
[333688785,1722355837811,-408.66224937,0.0001099,2]
[333688787,1722355837822,-1266.21517601,0.0001099,2]
[333688790,1722355837836,-553.16,0.0001099,2]
[333688791,1722355837860,-65204.51533577,0.0001099,2]
[333688793,1722355837871,-1698.02186945,0.0001099,2]
[333688796,1722355837882,-1051.02158597,0.0001099,2]
[333688797,1722355837892,-539.00383144,0.0001099,2]
[333688801,1722355837921,-331.735,0.0001099,2]
[333688803,1722355837932,-4018.91771306,0.0001099,2]
[333688804,1722355837944,-27313.1832597,0.0001099,2]
[333688805,1722355837955,-21409.86792879,0.0001099,7]
[333688806,1722355837966,-1161.75872803,0.0001099,7]
[333688807,1722355837977,-1498.39135129,0.0001099,7]
[333688808,1722355837989,-264.24,0.0001099,7]
[333688809,1722355838000,-25522.57442208,0.0001099,7]
[333688810,1722355838015,-5533.35431226,0.0001099,7]
[333688820,1722355839547,-12179.66173985,0.0001099,7]
[333688821,1722355839595,-312.004999,0.0001099,7]
[333688822,1722355839706,-87970.90222272,0.0001099,7]
[333688823,1722355839717,-252.13207778,0.0001099,7]
[333688824,1722355839728,-400.4380872,0.0001099,7]
[333688825,1722355839756,-5063.96244553,0.0001099,7]
[333688826,1722355839768,-77365.45188419,0.0001099,7]
[333688827,1722355839777,-1491.6617831,0.00010998,2]
[333688828,1722355839787,-1032.6592119,0.00010998,2]
[333688829,1722355839796,-16642.2632721,0.00010998,2]
[333688830,1722355839806,-150.01,0.00010999,2]
[333688831,1722355839816,-78643.6158087,0.00011,2]
[333688832,1722355839826,-3380.44659336,0.00011,2]
[333688833,1722355839837,-6672.5377891,0.00011,2]
[333688834,1722355839867,-1026.04080833,0.00011,2]
[333688835,1722355839926,-1619.20385,0.00011,2]
[333688836,1722355839937,-300.0495264,0.00011,2]
[333688837,1722355839976,-2944.42546705,0.00011,2]
[333688838,1722355839988,-658.89701571,0.00011,2]
[333688839,1722355839999,-350.44240906,0.00011,2]
[333688840,1722355840010,-338.0226125,0.00011,2]
[333689065,1722355842502,-500.0,0.00011,2]
[333689070,1722355842555,-3529.11975385,0.00011,2]
[333689073,1722355842567,-3397.76989014,0.00011,2]
[333689075,1722355842578,-1269.05719409,0.00011,2]
[333689077,1722355842589,-1031.497246,0.00011,2]
[333689080,1722355842609,-795.92013436,0.00011,2]
[333689082,1722355842621,-366.75560223,0.00011,2]
[333689084,1722355842631,-76833.06199734,0.00011,2]
[333689086,1722355842642,-1150.377831,0.00011,2]
[333689088,1722355842653,-1795.66259684,0.00011,2]
[333689090,1722355842666,-3642.79917391,0.00011,2]
[333689092,1722355842677,-26072.74558774,0.00011,2]
[333689094,1722355842686,-3000.0,0.00011,2]
[333689096,1722355842695,-360228.40858187,0.00011,2]
[333689097,1722355842708,-292.5,0.00011,2]
[333689099,1722355842719,-344.447979,0.00011,2]
[333689102,1722355842734,-1067.81353758,0.00011,2]
[333689104,1722355842746,-455.24917089,0.00011,2]
[333689106,1722355842757,-36597.54571064,0.00011,2]
[333689108,1722355842769,-4783.16,0.00011,2]
[333689110,1722355842780,-13917.85631514,0.00011,2]
[333689116,1722355842830,-2971.4261541,0.00011,2]
[333689118,1722355842841,-6020.00259753,0.00011,2]
[333689120,1722355842853,-8297.89290846,0.00011,2]
[333689123,1722355842869,-350.62,0.00011,2]
[333689125,1722355842880,-2448.6,0.00011,2]
[333689127,1722355842892,-2498.31440764,0.00011,2]
[333689129,1722355842903,-723.49542968,0.00011,2]
[333689387,1722355845502,-1891.29763656,0.00011,2]
[333689393,1722355845556,-1805.35167502,0.00011,2]
[333689395,1722355845567,-4030.75897368,0.00011,2]
[333689397,1722355845579,-668085.44801505,0.00011,2]
[333689399,1722355845590,-264.37005527,0.00011,2]
[333689403,1722355845614,-360.08234564,0.00011,2]
[333689410,1722355845673,-2136.19702433,0.00011,2]
[333689416,1722355845724,-1131.90187909,0.00011,2]
[333689418,1722355845738,-866.3,0.00011,2]
[333689420,1722355845749,-904.64662748,0.00011,2]
[333689423,1722355845765,-3258.8,0.00011,2]
[333689425,1722355845777,-1795.36741921,0.00011,2]
[333689427,1722355845789,-828.46681849,0.00011,2]
[333689432,1722355845885,-555.0,0.00011,2]
[333689433,1722355845896,-5694.90227695,0.00011,2]
[333689438,1722355903404,2000.0,0.00027,120]
[333689439,1722356012701,500.0,0.00027,120]
[333689440,1722356093767,20009.0,0.00027,120]
[333689441,1722356121900,20008.0,0.00025,60]
[333689443,1722356357278,489.4177498,0.0002688,120]
[333689445,1722356651793,20000.0,0.00027,120]
[333689446,1722356733402,11886.14617553,0.00027,120]
[333689470,1722357032306,-407.67,8.48e-05,2]
[333689471,1722357032316,-915.62,0.00010264,2]
[333689472,1722357032325,-188.18,0.00010389,2]
[333689473,1722357032335,-569.6,0.00010389,2]
[333689474,1722357032344,-430.4,0.00010714,2]
[333689475,1722357032353,-407.67,0.00010744,2]
[333689476,1722357032363,-360.80572837,0.0001079,2]
[333689477,1722357032375,-3545.23594935,0.0001079,2]
[333689478,1722357032386,-441.55013377,0.0001079,2]
[333689479,1722357032481,-529.24457597,0.0001079,2]
[333689480,1722357032493,-376.37542403,0.0001079,2]
[333689481,1722357032592,-1367.30155007,0.0001079,2]
[333689488,1722357037745,-1038.58293844,0.0001079,2]
[333689489,1722357037754,-146.7599493,0.0001089,2]
[333689490,1722357037802,-858.74623956,0.0001089,2]
[333689491,1722357037861,-1994.49381114,0.0001089,2]
[333689492,1722357037870,-2212.0231,0.0001089,2]
[333689493,1722357037879,-2696.66990549,0.0001089,2]
[333689494,1722357037921,-283.83287331,0.0001089,2]
[333689495,1722357037979,-1214.80253227,0.0001089,2]
[333689496,1722357038091,-9764.46778893,0.0001089,2]
[333689497,1722357038101,-487.09,0.000109,2]
[333689498,1722357038110,-200.0,0.00010959,2]
[333689499,1722357038119,-318947.6500486,0.0001099,7]
[333689654,1722357039725,-1851.00185942,0.0001099,7]
[333689656,1722357039738,-432.89024996,0.0001099,7]
[333689658,1722357039751,-8167.66567955,0.0001099,7]
[333689660,1722357039760,-1174.367863,0.00010998,2]
[333689662,1722357039770,-813.0005109,0.00010998,2]
[333689664,1722357039780,-228.75995767,0.00010999,2]
[333689666,1722357039790,-2000.0,0.00010999,2]
[333689668,1722357039799,-14039.03139035,0.00010999,2]
[333689670,1722357039812,-78347.09269149,0.00011,2]
[333689673,1722357039836,-137429.3312749,0.00011,2]
[333689688,1722357039978,-756.77499305,0.00011,2]
[333689691,1722357039991,-879.53341354,0.00011,2]
[333689696,1722357040036,-960.01640894,0.00011,2]
[333689699,1722357040050,-758.055998,0.00011,2]
[333689702,1722357040074,-382.60523184,0.00011,2]
[333689705,1722357040093,-4568.12145839,0.00011,2]
[333689707,1722357040104,-1056.7785687,0.00011,2]
[333689710,1722357040124,-657.0904263,0.00011,2]
[333689712,1722357040134,-616.1255737,0.00011,2]
[333689718,1722357040191,-3142.91921805,0.00011,2]
[333689955,1722357042721,-498.09121075,0.00011,2]
[333689958,1722357042740,-1466.79589,0.00011,2]
[333689960,1722357042751,-1662.404714,0.00011,2]
[333689966,1722357042798,-375.33115596,0.00011,2]
[333689972,1722357042857,-239297.10321505,0.00011,2]
[333689974,1722357042868,-298.72,0.00011,2]
[333689976,1722357042879,-758.19771398,0.00011,2]
[333689978,1722357042890,-826.16927255,0.00011,2]
[333689982,1722357042926,-275.452,0.00011,2]
[333689984,1722357042937,-4135.607814,0.00011,2]
[333689989,1722357042977,-2829.58704795,0.00011,2]
[333689991,1722357042988,-4049.69644931,0.00011,2]
[333689993,1722357043001,-500.0,0.00011,2]
[333689995,1722357043012,-361871.6202388,0.00011,2]
[333690177,1722357045806,-1324.41971245,0.00011,2]
[333690179,1722357045819,-1026.0,0.00011,2]
[333690186,1722357045921,-333.76,0.00011,2]
[333690188,1722357045932,-7093.51704191,0.00011,2]
[333690193,1722357045981,-253.08134789,0.00011,2]
[333690195,1722357045996,-618.85674834,0.00011,2]
[333690197,1722357046008,-2049.85255225,0.00011,2]
[333690199,1722357046020,-1666.24999999,0.00011,2]
[333690203,1722357046098,-1305.45743373,0.00011,2]
[333690223,1722357100306,2207.56195178,8.5e-05,6]
[333690224,1722357197973,500.0,0.00027,120]
[333690229,1722357424772,2207.73479209,0.00015,30]
[333690231,1722357514189,2207.73479209,0.00017,60]
[333690233,1722357632174,2207.73479209,0.00025,60]
[333690259,1722358231810,-412.02,8.219e-05,2]
[333690261,1722358231820,-300.0,9.959e-05,2]
[333690263,1722358231830,-18900.26,9.96e-05,2]
[333690265,1722358231843,-250.0,9.969e-05,2]
[333690267,1722358231853,-1250.0,0.0001,2]
[333690269,1722358231863,-1854.34095672,0.0001,2]
[333690271,1722358231874,-455.68,0.00010103,2]
[333690272,1722358231884,-955.94264259,0.00010303,2]
[333690273,1722358231894,-2073.38326707,0.00010303,2]
[333690274,1722358231904,-181.62,0.00010389,2]
[333690275,1722358231915,-544.32,0.00010465,2]
[333690276,1722358231926,-412.02,0.00010476,2]
[333690277,1722358231936,-300.0,0.00010852,2]
[333690278,1722358231946,-179.37290574,0.00010852,2]
[333690279,1722358231956,-179.37290574,0.00010865,2]
[333690280,1722358231966,-179.37290574,0.00010888,2]
[333690281,1722358231976,-396.4801,0.0001089,2]
[333690282,1722358231985,-25538.2014,0.000109,2]
[333690283,1722358231995,-1762.8104,0.000109,2]
[333690284,1722358232005,-211.12701678,0.000109,2]
[333690285,1722358232015,-200.0,0.00010959,2]
[333690286,1722358232025,-150.0,0.00010959,2]
[333690287,1722358232035,-9856.68637726,0.00010995,2]
[333690288,1722358232047,-1204.70442374,0.00010995,2]
[333690289,1722358232063,-396.48017172,0.00010995,2]
[333690290,1722358232078,-3106.0090687,0.00010995,2]
[333690291,1722358232176,-6294.43253385,0.00010995,2]
[333690292,1722358232189,-895.47320823,0.00010995,2]
[333690293,1722358232199,-360.59890417,0.00010999,2]
[333690294,1722358232211,-790.38281067,0.00010999,2]
[333690317,1722358238203,-695.62449941,0.00010999,2]
[333690332,1722358238352,-153.39378575,0.00010999,2]
[333690333,1722358238361,-1847.89041433,0.00010999,2]
[333690334,1722358238539,-152.10958567,0.00010999,2]
[333690335,1722358238561,-795.204,0.00011,2]
[333690336,1722358238571,-2844.15455661,0.00011,2]
[333690337,1722358238582,-8260.77624427,0.00011,2]
[333690338,1722358238610,-425.54702192,0.00011,2]
[333690339,1722358238621,-871.96,0.00011,2]
[333690340,1722358238632,-722.5474921,0.00011,2]
[333690346,1722358242979,-1130.32059321,0.00011,2]
[333690347,1722358242991,-1034.355,0.00011,2]
[333690348,1722358243002,-2198.49212684,0.00011,2]
[333690349,1722358243036,-470.73536654,0.00011,2]
[333690350,1722358243047,-651.6749428,0.00011,2]
[333690351,1722358243059,-453.22999998,0.00011,2]
[333690352,1722358243199,-11552.99633295,0.00011,2]
[333690353,1722358243211,-3426.3971221,0.00011,2]
[333690354,1722358243259,-14082.07313583,0.00011,2]
[333690383,1722358245895,-16878.07989239,0.00011,2]
[333690384,1722358245953,-6553.97035161,0.00011,2]
[333690385,1722358246120,-23765.70794367,0.00011,2]
[333690386,1722358246234,-5256.37160202,0.00011,2]
[333690648,1722358369620,-392.62,8.84e-05,2]
[333690649,1722358400112,1370.09326791,8.84e-05,2]
[333690650,1722358404297,411.54934528,8.84e-05,2]
[333690651,1722358406090,7825.73738681,8.84e-05,2]
[333690652,1722358406111,10000.0,8.84e-05,2]
[333690653,1722358406132,2544.480522,8.84e-05,2]
[333690654,1722358407210,363.53581516,8.84e-05,2]
[333690655,1722358409489,158.8537484,8.84e-05,2]
[333690656,1722358410737,291.29119994,8.84e-05,2]
[333690657,1722358411026,871.44654427,8.84e-05,2]
[333690658,1722358413600,155.0,8.84e-05,2]
[333690659,1722358415619,1267.7837183,8.84e-05,2]
[333690660,1722358415823,461.44294926,8.84e-05,2]
[333690661,1722358416599,155.55923325,8.84e-05,2]
[333690662,1722358445620,1267.7837183,8.84e-05,2]